bitfinex/quotes_ETHUSD_20250529
["timestamp","ask_amount","ask_price","bid_price","bid_amount"]
[1748505760355,4.77936977,2726.0,2725.3,3.6693208]
[1748505760553,4.77936977,2726.0,2725.2,0.1997]
[1748505760554,7.42684575,2725.7,2725.2,0.1997]
[1748505760725,3.66895395,2725.6,2725.2,0.1997]
[1748505761049,3.66893953,2725.6,2725.2,0.1997]
[1748505761349,3.66927723,2725.4,2725.2,0.1997]
[1748505761648,3.66910404,2725.5,2725.2,0.1997]
[1748505761850,3.66922394,2725.4,2725.1,0.05]
[1748505762026,3.66932022,2725.4,2725.1,0.05]
[1748505762443,3.66932338,2725.3,2725.1,0.05]
[1748505762770,7.43345545,2725.2,2725.1,0.05]
[1748505762921,8.176801,2725.2,2725.1,0.05]
[1748505763255,9.200501,2725.2,2725.1,0.05]
[1748505765360,9.200501,2725.2,2723.0,0.2497]
[1748505765361,5.31640243,2724.2,2723.0,0.2497]
[1748505765659,5.31640243,2724.2,2722.0,3.6736854]
[1748505765660,1.1233,2723.6,2723.1,0.05]
[1748505765979,3.67205956,2723.3,2723.1,0.05]
[1748505766481,7.45883736,2723.5,2723.1,0.05]
[1748505766482,3.67215041,2723.2,2723.1,0.05]
[1748505766772,3.67204302,2723.3,2723.1,0.05]
[1748505766974,3.67215041,2723.2,2723.1,0.05]
[1748505767121,1.1233,2723.6,2723.1,0.05]
[1748505767324,3.67207143,2723.3,2723.1,0.05]
[1748505767543,3.67188073,2723.4,2723.1,0.05]
[1748505767753,3.67215041,2723.2,2723.1,0.05]
[1748505767918,3.67206115,2723.3,2723.1,0.05]
[1748505768322,7.48015041,2723.2,2723.1,0.05]
[1748505769622,3.67230268,2723.1,2722.5,3.49814644]
[1748505769919,3.67228526,2723.1,2722.5,3.67301482]
[1748505770168,3.67220407,2723.2,2722.5,3.67301512]
[1748505770334,3.807,2723.1,2722.6,4.68493549]
[1748505770719,3.67217901,2723.2,2722.6,4.68493549]
[1748505770976,3.807,2723.1,2722.7,3.67277704]
[1748505771125,3.807,2723.1,2722.6,4.68485966]
[1748505771464,7.47931888,2723.1,2722.6,1.01198293]
[1748505772029,3.807,2723.1,2722.6,1.01198293]
[1748505772367,3.807,2723.1,2722.4,0.98]
[1748505772654,3.807,2723.1,2722.5,3.6729986]
[1748505772655,7.47936072,2723.1,2722.5,3.6729986]
[1748505773163,3.807,2723.1,2722.6,3.67287118]
[1748505773466,3.805,2723.1,2722.6,3.67285575]
[1748505773634,3.67221036,2723.2,2722.6,3.67285575]
[1748505773837,3.805,2723.1,2722.7,0.73459364]
[1748505774051,3.805,2723.1,2722.7,4.40740649]
[1748505774352,3.805,2723.0,2722.7,0.73459364]
[1748505774557,3.805,2723.0,2722.7,4.40740098]
[1748505774960,3.805,2723.0,2722.7,4.40741814]
[1748505775125,3.6719207,2723.4,2722.7,0.73459364]
[1748505775321,7.47613801,2723.3,2722.7,4.40741765]
[1748505775722,3.6721678,2723.2,2722.7,4.40741765]
[1748505776443,1.0503,2723.9,2723.1,1.7935893]
[1748505776641,1.0503,2723.9,2723.4,3.67178943]
[1748505776642,3.805,2723.9,2723.4,3.67178943]
[1748505777038,3.805,2723.9,2723.5,8.0]
[1748505777250,3.805,2723.9,2723.4,3.67178943]
[1748505777251,3.807,2723.9,2723.6,3.67150802]
[1748505777666,3.67067893,2724.3,2723.6,3.67150802]
[1748505777964,3.806,2723.9,2723.6,3.67150802]
[1748505778570,3.806,2723.9,2723.6,3.67160362]
[1748505779228,3.67067893,2724.3,2723.7,3.67143312]
[1748505779229,3.805,2724.0,2723.7,3.67143312]
[1748505779759,3.805,2724.0,2723.5,8.0]
[1748505779966,3.805,2724.0,2723.6,3.6716111]
[1748505781136,3.805,2724.0,2723.8,0.5]
[1748505782368,3.67082685,2724.2,2723.8,0.5]
[1748505782369,1.1151,2724.5,2723.8,0.5]
[1748505782572,3.67060909,2724.4,2723.8,8.5]
[1748505782748,3.801,2724.3,2723.8,8.5]
[1748505782946,3.801,2724.3,2723.8,9.71714493]
[1748505783143,4.78551732,2724.5,2723.9,3.67109693]
[1748505783470,7.47155913,2724.4,2723.9,3.67109693]
[1748505784289,4.73212027,2724.8,2723.9,3.67109693]
[1748505784437,3.67040419,2724.5,2724.0,3.67099898]
[1748505784932,3.67040419,2724.5,2723.9,3.67114146]
[1748505785567,3.67040419,2724.5,2723.8,4.88844803]
[1748505785777,3.67040419,2724.5,2723.8,3.6713031]
[1748505786268,3.67027085,2724.6,2723.9,3.67112004]
[1748505786584,3.797,2724.5,2724.1,3.67092542]
[1748505786769,3.798,2724.4,2724.1,3.6708667]
[1748505786942,3.67020196,2724.7,2724.2,3.67076798]
[1748505787149,3.798,2724.4,2724.1,3.67088033]
[1748505787558,3.798,2724.4,2724.2,3.67079084]
[1748505787873,3.798,2724.4,2724.1,3.67087786]
[1748505788279,3.67027161,2724.6,2724.0,3.67100333]
[1748505788568,3.797,2724.5,2724.0,3.67100333]
[1748505788782,4.54371311,2724.5,2723.2,1.7935893]
[1748505788947,4.71243296,2724.4,2723.4,3.67181332]
[1748505789145,3.67113937,2724.0,2723.5,3.67174557]
[1748505789346,3.798,2723.9,2723.5,3.67174557]
[1748505789743,3.798,2723.9,2723.2,4.65207104]
[1748505789744,3.67155534,2723.7,2723.2,4.65207104]
[1748505789989,3.67139639,2723.8,2723.2,5.66386848]
[1748505790386,3.67139639,2723.8,2722.8,8.44074177]
[1748505790387,3.67176633,2723.5,2722.9,3.67252427]
[1748505790708,3.67176633,2723.5,2722.9,3.67252552]
[1748505790709,3.67183456,2723.5,2722.9,3.67252552]
[1748505790870,3.797,2723.6,2722.8,5.11542474]
[1748505791070,3.67181842,2723.5,2722.9,4.98404939]
[1748505791521,3.67181842,2723.5,2722.7,11.67279386]
[1748505791522,3.797,2723.6,2722.6,8.927]
[1748505791674,3.67205746,2723.3,2722.7,3.67269047]
[1748505791867,3.797,2723.6,2722.6,12.59986317]
[1748505791868,3.67221255,2723.2,2722.6,12.59986317]
[1748505792186,3.797,2723.1,2722.8,3.67265984]
[1748505792372,3.797,2723.1,2722.7,3.67276965]
[1748505792567,3.797,2723.0,2722.7,5.30004167]
[1748505793313,3.797,2723.0,2722.7,1.62727202]
[1748505793467,3.797,2723.0,2722.6,12.59989553]
[1748505793979,3.67152971,2723.7,2722.6,12.59989553]
[1748505793980,1.0667,2724.0,2722.6,8.927]
[1748505794318,3.67161374,2723.6,2723.1,5.4657998]
[1748505794530,1.1128,2723.8,2723.1,5.4657998]
[1748505794685,3.6714763,2723.7,2723.1,5.46579903]
[1748505795012,3.67161731,2723.6,2723.1,5.46579903]
[1748505795307,3.67161731,2723.6,2723.1,1.7935893]
[1748505795510,3.67153835,2723.7,2723.1,5.46578632]
[1748505795710,3.67153835,2723.7,2723.1,6.37960066]
[1748505795872,7.46663792,2723.6,2723.1,5.46580285]
[1748505796327,7.46663792,2723.6,2723.1,1.7935893]
[1748505797009,1.1128,2723.8,2723.1,1.7935893]
[1748505797211,7.46561146,2723.6,2723.1,1.7935893]
[1748505797412,3.67189953,2723.4,2723.1,1.7935893]
[1748505797783,3.67189953,2723.4,2722.6,8.927]
[1748505797784,3.6721869,2723.2,2722.6,7.925]
[1748505798013,3.6721869,2723.2,2722.7,1.002]
[1748505798216,7.4661869,2723.2,2722.7,4.67479064]
[1748505798441,3.794,2723.2,2722.8,3.67266342]
[1748505798616,1.0314,2723.3,2722.8,3.67266342]
[1748505798617,3.794,2723.3,2722.8,3.67266342]
[1748505798942,3.794,2723.3,2722.8,3.67261631]
[1748505799153,3.67197136,2723.4,2722.9,3.67250702]
[1748505799340,3.795,2723.5,2722.8,1.62724266]
[1748505799546,3.795,2723.5,2723.2,3.67211982]
[1748505799842,1.1073,2723.8,2723.4,3.67175586]
[1748505800140,1.1073,2723.8,2722.8,1.62724266]
[1748505800141,3.796,2723.8,2723.5,3.67172077]
[1748505800502,3.796,2723.8,2723.6,3.67159388]
[1748505800703,3.796,2723.8,2723.5,3.67168514]
[1748505801609,3.795,2723.9,2723.6,3.67160799]
[1748505803253,3.795,2723.9,2723.4,3.74497674]
[1748505803254,3.795,2723.9,2723.7,3.67138957]
[1748505803556,3.793,2724.0,2723.6,3.67153847]
[1748505805021,3.793,2724.0,2723.6,3.67155909]
[1748505805532,3.793,2724.0,2723.5,3.67173722]
[1748505805718,3.793,2724.0,2723.4,3.7449603]
[1748505807155,4.81235954,2724.1,2723.5,4.67371339]
[1748505807156,1.1414,2724.1,2723.5,4.67371339]
[1748505807358,1.1414,2724.1,2723.6,3.67150722]
[1748505807582,1.1414,2724.1,2723.7,3.67147358]
[1748505807722,4.9304,2724.1,2723.6,3.67154781]
[1748505808355,1.1414,2724.1,2723.6,3.67154781]
[1748505808518,8.56485154,2724.2,2723.7,3.67147613]
[1748505808722,9.29900441,2724.2,2723.7,3.67147613]
[1748505808924,3.67094672,2724.1,2723.6,3.67159172]
[1748505809349,1.106,2724.1,2723.0,3.67235031]
[1748505809560,4.52215287,2724.2,2722.9,3.67251988]
[1748505809561,4.77781936,2723.5,2722.9,3.67251988]
[1748505809976,3.67192522,2723.4,2722.9,3.67251988]
[1748505810135,1.106,2723.4,2722.5,1.7935893]
[1748505810320,1.106,2723.4,2723.1,3.67219954]
[1748505810321,3.798,2723.4,2723.1,3.67219954]
[1748505810525,3.798,2723.4,2723.0,3.67240816]
[1748505810719,3.798,2723.4,2723.2,3.67214093]
[1748505811879,3.798,2723.4,2723.2,3.67209651]
[1748505812021,3.798,2723.4,2723.1,4.21885097]
[1748505812520,3.67099058,2724.1,2723.3,1.7935893]
[1748505812730,3.798,2724.0,2723.6,3.67155659]
[1748505812963,0.74688734,2724.0,2723.6,3.67155659]
[1748505813161,3.798,2724.1,2723.6,3.67155659]
[1748505813371,3.798,2724.1,2723.7,3.67143247]
[1748505813571,7.46894593,2724.1,2723.6,3.67158635]
[1748505814334,7.46894593,2724.1,2723.5,3.67168714]
[1748505814534,3.798,2724.1,2723.6,3.6716103]
[1748505815278,7.46894026,2724.1,2723.6,3.6716103]
[1748505815883,3.798,2724.1,2723.6,3.6716103]
[1748505816060,3.798,2724.1,2723.7,3.67146889]
[1748505816261,3.798,2724.1,2723.6,3.67153261]
[1748505816449,7.46894552,2724.1,2723.6,3.67153261]
[1748505817635,3.798,2724.1,2723.6,3.67153261]
[1748505818079,4.74800672,2723.9,2723.3,1.002]
[1748505818281,3.67144417,2723.8,2723.3,1.002]
[1748505818437,3.67153703,2723.7,2723.3,1.002]
[1748505818875,3.67153703,2723.7,2723.2,4.67411137]
[1748505819081,3.67153703,2723.7,2723.2,4.67412797]
[1748505819449,4.74805608,2723.9,2723.3,3.67200747]
[1748505819655,4.74805608,2723.9,2723.3,0.0731]
[1748505819656,1.0768,2723.9,2723.3,0.0731]
[1748505819862,7.46400493,2724.1,2723.5,3.6716628]
[1748505820962,7.46400493,2724.1,2723.6,3.67158945]
[1748505822181,7.46400493,2724.1,2723.5,3.67168155]
[1748505822382,3.67118081,2724.0,2723.4,3.67182849]
[1748505822579,3.67118081,2724.0,2723.3,3.74507908]
[1748505822782,3.793,2724.1,2723.5,3.67173399]
[1748505822783,7.46399768,2724.1,2723.5,3.67173399]
[1748505823279,3.67130554,2723.9,2723.5,0.999]
[1748505823439,1.1411,2724.0,2723.5,4.67062282]
[1748505823774,4.81220683,2724.0,2723.5,4.67062282]
[1748505824139,1.1411,2724.0,2723.5,4.67062282]
[1748505824337,4.81218636,2724.0,2723.5,4.67062282]
[1748505825274,3.67128389,2723.9,2723.1,0.0731]
[1748505825460,3.67148868,2723.7,2723.2,4.67107041]
[1748505826275,3.67148868,2723.7,2723.2,0.999]
[1748505826276,3.67183882,2723.5,2723.2,0.999]
[1748505826951,3.67165963,2723.6,2723.2,0.999]
[1748505827275,7.46254528,2723.7,2723.1,4.67126706]
[1748505827578,7.4625307,2723.7,2723.1,4.67126706]
[1748505828157,3.67164553,2723.6,2723.1,4.67126706]
[1748505828363,3.67177452,2723.5,2723.1,0.999]
[1748505828701,3.791,2723.7,2722.9,1.7935893]
[1748505829020,1.0983,2723.5,2723.0,0.999]
[1748505829228,4.77006281,2723.5,2723.0,4.67135823]
[1748505829561,4.77005659,2723.5,2723.0,4.67135823]
[1748505830109,0.49142,2723.6,2723.0,4.67135823]
[1748505830110,3.788,2723.6,2723.2,3.67208301]
[1748505830456,3.67127607,2723.9,2723.3,1.7935893]
[1748505830696,3.67127607,2723.9,2723.3,5.46551029]
[1748505831195,3.67134371,2723.8,2723.3,5.46551029]
[1748505831355,3.67127222,2723.9,2723.3,5.46551029]
[1748505831556,3.67127222,2723.9,2723.4,3.67187369]
[1748505832298,3.67127222,2723.9,2723.3,5.46554117]
[1748505832501,3.67134641,2723.8,2723.3,5.46554117]
[1748505832663,3.67134641,2723.8,2723.2,1.7935893]
[1748505832863,3.67134641,2723.8,2723.3,3.67194666]
[1748505833118,3.6714763,2723.7,2723.3,0.999]
[1748505833267,1.1251,2723.6,2723.3,0.999]
[1748505834085,1.1251,2723.6,2723.2,1.7935893]
[1748505834272,3.67175454,2723.5,2723.3,0.999]
[1748505834472,4.79677747,2723.6,2723.2,1.7935893]
[1748505835364,4.79674379,2723.6,2723.2,1.7935893]
[1748505835765,4.79674379,2723.6,2723.1,4.67128278]
[1748505836084,4.79674379,2723.6,2723.1,0.999]
[1748505836283,4.79674379,2723.6,2723.1,4.67128391]
[1748505836498,4.79674379,2723.6,2722.8,1.7935893]
[1748505836499,3.67183039,2723.5,2723.0,0.999]
[1748505836672,3.67183039,2723.5,2723.0,4.67141755]
[1748505836871,4.79677484,2723.6,2723.0,4.67141755]
[1748505839005,3.67176032,2723.5,2723.0,4.67141755]
[1748505839202,1.1251,2723.6,2723.1,3.67219568]
[1748505839418,7.45936644,2723.8,2723.3,3.67200578]
[1748505839721,1.0239,2723.7,2722.5,1.7935893]
[1748505839898,3.671863,2723.5,2722.9,3.67247645]
[1748505840095,4.8069,2723.7,2722.8,4.67161027]
[1748505840297,3.67207684,2723.3,2722.8,4.67161027]
[1748505840491,3.67183749,2723.5,2722.8,4.67161027]
[1748505840492,3.67185217,2723.5,2722.9,3.67251041]
[1748505840852,3.67185217,2723.5,2722.8,2.01307575]
[1748505840853,8.4784065,2723.7,2722.8,0.999]
[1748505841138,4.79344591,2723.5,2722.8,0.999]
[1748505841299,3.6726331,2722.9,2722.5,8.999]
[1748505841499,4.79418616,2723.0,2722.5,8.999]
[1748505841832,4.79418616,2723.0,2722.5,4.97388508]
[1748505842050,3.67255499,2722.9,2722.4,4.00899404]
[1748505842183,1.1217,2723.0,2722.4,4.00899404]
[1748505842527,3.783,2723.2,2722.4,4.00899404]
[1748505842528,3.67233097,2723.1,2722.6,3.67294938]
[1748505842691,7.45633097,2723.1,2722.6,3.67294938]
[1748505843190,4.8965,2723.4,2722.6,1.79622794]
[1748505843387,3.67264846,2722.9,2722.6,1.79622794]
[1748505843698,3.67264846,2722.9,2722.4,5.00799404]
[1748505843905,4.78614846,2722.9,2722.4,5.00799404]
[1748505844082,4.78614846,2722.9,2722.4,8.68121048]
[1748505844286,4.78614846,2722.9,2722.4,5.00799404]
[1748505844287,4.78612282,2722.9,2722.4,5.00799404]
[1748505844543,1.1135,2722.9,2722.4,7.68214795]
[1748505844721,4.78608397,2722.9,2722.4,7.68214795]
[1748505844935,4.78608397,2722.9,2722.4,4.00899404]
[1748505845419,3.67269739,2722.8,2722.4,4.00899404]
[1748505845844,3.67269739,2722.8,2722.3,0.999]
[1748505846191,4.7861162,2722.9,2722.3,4.6722973]
[1748505846922,3.67269734,2722.8,2722.3,4.6722973]
[1748505847124,3.67269734,2722.8,2722.3,0.999]
[1748505847300,3.67269734,2722.8,2722.2,5.46968666]
[1748505847301,3.67305209,2722.6,2722.2,0.999]
[1748505847948,4.51859768,2722.8,2722.2,0.999]
[1748505848153,3.67311538,2722.5,2722.1,0.05]
[1748505848457,3.67314825,2722.5,2722.1,0.05]
[1748505848787,3.67330506,2722.4,2722.1,0.05]
[1748505849191,7.45413761,2722.5,2722.1,0.05]
[1748505849831,3.67349937,2722.2,2722.1,0.05]
[1748505850033,3.67347097,2722.3,2722.1,0.05]
[1748505850222,3.781,2722.5,2722.1,3.72354213]
[1748505850620,3.782,2722.6,2722.1,3.72354213]
[1748505851645,7.45497181,2722.6,2722.1,3.72354213]
[1748505852036,7.45497181,2722.6,2722.1,5.52065037]
[1748505853239,3.782,2722.6,2722.1,5.52065037]
[1748505853543,5.56306841,2722.8,2722.3,3.67335869]
[1748505853544,5.5631321,2722.8,2722.3,3.67335869]
[1748505853835,3.779,2722.7,2722.2,3.67344941]
[1748505854042,7.45192382,2722.7,2722.1,5.52067869]
[1748505854534,3.67296752,2722.6,2722.1,5.52067869]
[1748505854733,7.4518913,2722.7,2722.1,5.52067869]
[1748505855234,3.67296615,2722.6,2722.1,5.52067869]
[1748505855536,7.45187939,2722.7,2722.1,5.52067869]
[1748505855735,3.6734334,2722.3,2722.1,1.84710824]
[1748505855900,5.08049748,2722.7,2722.1,0.05]
[1748505856211,3.779,2722.7,2722.1,0.05]
[1748505856424,3.67329624,2722.4,2722.1,0.05]
[1748505856595,3.67332664,2722.4,2722.1,0.05]
[1748505857006,1.58975,2723.3,2722.3,1.79710824]
[1748505857357,3.67249868,2723.0,2722.4,3.6732295]
[1748505858112,3.67249868,2723.0,2722.5,3.67307956]
[1748505859380,1.0454,2723.1,2722.1,1.41439028]
[1748505859527,3.67292277,2722.7,2722.1,3.72354642]
[1748505859723,3.67298513,2722.6,2722.1,0.05]
[1748505859925,1.0121,2722.7,2722.1,0.05]
[1748505860163,1.0121,2722.7,2722.2,3.67340741]
[1748505860522,1.0121,2722.7,2722.1,0.05]
[1748505860523,1.0121,2722.7,2722.3,3.67331224]
[1748505860727,1.0121,2722.7,2722.2,3.67343604]
[1748505860928,1.0121,2722.7,2717.1,16.05]
[1748505860929,3.786,2722.6,2721.5,0.33958169]
[1748505861130,3.786,2722.6,2719.5,1.86217056]
[1748505861131,3.67620027,2720.2,2720.1,0.05]
[1748505861930,3.67611367,2720.3,2720.1,0.05]
[1748505862164,3.67596042,2720.4,2720.1,0.05]
[1748505862329,3.67602621,2720.4,2720.1,0.05]
[1748505862526,4.73500027,2720.2,2720.1,0.05]
[1748505862776,5.5760933,2720.2,2720.1,0.05]
[1748505863129,3.67620027,2720.2,2720.1,0.05]
[1748505863553,4.71890027,2720.2,2720.1,0.05]
[1748505864269,5.26890027,2720.2,2720.1,0.05]
[1748505864497,4.71890027,2720.2,2720.1,0.05]
[1748505866614,8.65490027,2720.2,2720.1,0.05]
[1748505866813,10.25558962,2720.2,2720.1,0.05]
[1748505866975,6.31958962,2720.2,2720.1,0.05]
[1748505867378,10.25658962,2720.2,2720.1,0.05]
[1748505867976,3.67715133,2719.5,2719.2,1.078]
[1748505868171,3.67702704,2719.6,2719.2,1.078]
[1748505868379,6.58038935,2720.2,2719.2,1.078]
[1748505868574,3.67715746,2719.5,2719.2,1.078]
[1748505868871,0.65803894,2720.1,2719.2,1.078]
[1748505868872,3.67750469,2719.3,2719.2,1.078]
[1748505869070,1.0087,2719.7,2718.7,3.67822062]
[1748505869071,1.0087,2719.7,2719.0,1.078]
[1748505869272,1.0087,2719.7,2718.9,1.078]
[1748505869273,3.67758741,2719.2,2718.9,1.078]
[1748505870005,3.67747447,2719.3,2718.9,1.078]
[1748505870512,3.67747447,2719.3,2718.7,3.67822743]
[1748505870711,3.67747447,2719.3,2718.8,1.078]
[1748505871206,3.67783396,2719.0,2718.5,8.0]
[1748505871408,3.937,2719.6,2718.6,1.078]
[1748505871409,3.67804815,2718.9,2718.6,1.078]
[1748505871995,3.67804815,2718.9,2718.4,1.79710824]
[1748505872322,3.67804815,2718.9,2718.5,1.078]
[1748505872524,3.67752192,2719.3,2718.6,3.67823866]
[1748505872725,7.61122628,2719.5,2718.6,3.67836386]
[1748505872901,3.67757953,2719.2,2718.6,3.67836386]
[1748505873231,3.67773723,2719.1,2718.5,4.7564485]
[1748505873384,3.934,2719.5,2718.4,2.34468725]
[1748505873598,3.67792575,2719.0,2718.6,1.079]
[1748505873905,3.6778029,2719.1,2718.6,1.079]
[1748505874128,3.67805277,2718.9,2718.5,1.079]
[1748505874316,3.67765991,2719.2,2718.6,3.67835135]
[1748505874674,3.67781753,2719.1,2718.5,4.757462]
[1748505874869,4.3254,2719.4,2718.5,2.90233352]
[1748505874870,3.67787341,2719.0,2718.5,2.90233352]
[1748505875123,3.67775966,2719.1,2718.5,6.58076335]
[1748505875305,3.67761424,2719.2,2718.6,3.67834894]
[1748505875819,3.67753872,2719.3,2718.5,2.90233352]
[1748505875820,3.67744298,2719.3,2718.5,2.90233352]
[1748505876122,4.3234,2719.4,2718.5,2.90233352]
[1748505876440,3.67810782,2718.8,2718.3,1.79710824]
[1748505876574,3.6780316,2718.9,2718.5,1.079]
[1748505876929,3.67802664,2718.9,2718.5,1.079]
[1748505877714,3.67788196,2719.0,2718.5,4.75743109]
[1748505878315,3.67788196,2719.0,2718.5,1.079]
[1748505878477,3.67780039,2719.1,2718.5,4.75741176]
[1748505878681,3.67780039,2719.1,2718.6,3.67835534]
[1748505878905,3.67780039,2719.1,2718.5,4.75745168]
[1748505879115,3.67780039,2719.1,2718.6,3.67835149]
[1748505879425,3.67780039,2719.1,2718.5,4.75743682]
[1748505879632,3.67769035,2719.1,2718.6,3.67828305]
[1748505879790,3.67767347,2719.2,2718.6,3.67829099]
[1748505880125,1.4024,2719.4,2718.5,2.10231694]
[1748505880126,5.3294,2719.4,2718.5,2.10231694]
[1748505880325,3.67763968,2719.2,2718.6,3.67827568]
[1748505880753,3.67763968,2719.2,2718.5,4.75747978]
[1748505880890,1.0826,2718.5,2718.1,0.05]
[1748505881090,3.67800397,2718.9,2718.1,0.05]
[1748505881292,3.67794811,2719.0,2718.1,0.60261952]
[1748505881493,7.64166899,2719.2,2718.4,3.6785306]
[1748505881791,4.9919,2719.3,2718.5,4.75744091]
[1748505882018,4.9919,2719.3,2718.1,0.05]
[1748505882019,3.67777951,2719.1,2718.4,3.67855037]
[1748505882327,3.67790665,2719.0,2718.4,3.67855037]
[1748505883001,3.67790583,2719.0,2718.4,4.41435317]
[1748505883202,3.67790583,2719.0,2718.5,3.67848133]
[1748505883404,7.64973564,2719.1,2718.6,3.67833508]
[1748505883713,1.0269,2719.2,2718.7,3.67815196]
[1748505883714,3.972,2719.2,2718.7,3.67815196]
[1748505883918,3.972,2719.2,2718.6,3.67830583]
[1748505884229,3.972,2719.2,2718.5,3.67849917]
[1748505884230,3.971,2719.3,2718.7,3.67813409]
[1748505884445,7.64843109,2719.3,2718.6,3.67830865]
[1748505884650,3.67743109,2719.3,2718.7,3.67813411]
[1748505884881,7.64743109,2719.3,2718.7,3.67813411]
[1748505885017,3.97,2719.3,2718.8,3.67804959]
[1748505885215,3.67752653,2719.3,2718.7,3.67815128]
[1748505885548,3.67752653,2719.3,2718.6,0.44140432]
[1748505885549,3.67769352,2719.1,2718.6,0.44140432]
[1748505885750,3.67769352,2719.1,2718.5,3.67845246]
[1748505886070,3.968,2719.1,2718.7,3.6782213]
[1748505886356,3.67743137,2719.3,2718.8,3.67807977]
[1748505886661,3.966,2719.2,2718.7,3.67818159]
[1748505886825,3.966,2719.2,2718.4,0.73573453]
[1748505887026,0.50242,2719.2,2718.5,3.67849917]
[1748505887350,4.18002691,2719.2,2718.6,3.67829434]
[1748505888015,4.18002691,2719.2,2718.5,3.67847219]
[1748505888354,3.67771268,2719.1,2718.6,3.67829625]
[1748505888919,4.18005499,2719.2,2718.6,3.67829625]
[1748505889118,3.6777811,2719.1,2718.6,0.0235]
[1748505889662,3.67775525,2719.1,2718.6,0.0235]
[1748505889951,0.50242,2719.2,2718.6,0.0235]
[1748505889952,3.67788011,2719.0,2718.6,0.0235]
[1748505890139,0.50242,2719.2,2718.6,0.0235]
[1748505890140,4.18007046,2719.2,2718.6,0.0235]
[1748505890313,3.67795678,2719.0,2718.6,0.0235]
[1748505890660,0.50242,2719.2,2718.6,0.0235]
[1748505890815,3.67807016,2718.9,2718.4,0.0235]
[1748505891011,3.67795799,2718.9,2718.1,4.80795078]
[1748505891237,3.67795799,2718.9,2718.2,0.0235]
[1748505891475,4.80630515,2718.2,2718.1,0.05]
[1748505891635,9.65981341,2718.2,2718.1,0.05]
[1748505892973,9.65681341,2718.2,2718.1,0.05]
[1748505893469,9.65681341,2718.2,2717.1,0.05]
[1748505893470,4.78655909,2717.2,2717.1,0.05]
[1748505893628,8.79955909,2717.2,2717.1,0.05]
[1748505894944,8.79655909,2717.2,2717.1,0.05]
[1748505895338,10.04422758,2717.2,2717.1,0.05]
[1748505895674,4.011,2717.3,2717.1,0.05]
[1748505895866,3.68024591,2717.3,2717.1,0.05]
[1748505896062,3.67996878,2717.5,2716.1,0.05]
[1748505896063,1.1083,2717.0,2716.1,0.05]
[1748505896239,4.053,2716.9,2716.1,0.05]
[1748505896434,3.68130187,2716.5,2716.1,0.05]
[1748505896678,1.1083,2717.0,2716.2,3.68151459]
[1748505897131,3.68080434,2716.8,2716.3,0.1235]
[1748505897334,3.68095259,2716.7,2716.3,0.1235]
[1748505898071,1.1083,2717.0,2716.3,0.1235]
[1748505898072,3.68114252,2716.6,2716.3,0.1235]
[1748505898237,5.30510114,2717.0,2716.1,0.05]
[1748505898440,3.68121181,2716.5,2716.1,0.05]
[1748505898783,1.0915,2716.7,2716.1,0.05]
[1748505898945,3.68161401,2716.2,2716.1,0.05]
[1748505899145,3.68157771,2716.3,2716.1,0.05]
[1748505899370,3.68161401,2716.2,2716.1,0.05]
[1748505899585,3.68153283,2716.3,2716.1,0.05]
[1748505899758,4.062,2716.5,2716.1,0.05]
[1748505900290,3.68100386,2716.7,2716.1,3.92870559]
[1748505900447,3.68081242,2716.8,2716.1,3.92870559]
[1748505900642,3.68072278,2716.9,2716.3,5.47858123]
[1748505900883,3.68101624,2716.7,2716.3,2.73784647]
[1748505901096,5.1398,2717.0,2716.1,0.05]
[1748505901246,3.68161401,2716.2,2716.1,0.05]
[1748505901659,4.06,2716.4,2716.1,0.05]
[1748505901872,3.68161401,2716.2,2716.1,0.05]
[1748505903090,4.065,2717.3,2716.1,0.05]
[1748505903273,1.0767,2716.9,2716.1,0.05]
[1748505903588,3.68117399,2716.6,2716.1,0.05]
[1748505904149,4.065,2716.7,2716.1,0.05]
[1748505904350,3.68142423,2716.4,2716.1,0.05]
[1748505905287,1.44844242,2716.3,2716.1,0.05]
[1748505905489,3.68161401,2716.2,2716.1,0.05]
[1748505906562,5.12998077,2716.3,2716.1,0.05]
[1748505906765,7.74152543,2716.3,2716.1,0.05]
[1748505906964,3.68161401,2716.2,2716.1,0.05]
[1748505907467,7.74761401,2716.2,2716.1,0.05]
[1748505908199,3.68123327,2716.5,2716.1,0.05]
[1748505908354,7.74548168,2716.3,2716.1,0.05]
[1748505908556,7.74557019,2716.3,2716.1,0.05]
[1748505908852,4.30911923,2716.3,2716.1,0.05]
[1748505909058,3.68161401,2716.2,2716.1,0.05]
[1748505909258,4.30907586,2716.3,2716.1,0.05]
[1748505909486,3.68161401,2716.2,2716.1,0.05]
[1748505910289,1.0858,2716.6,2716.1,0.05]
[1748505910290,0.18464384,2718.0,2716.3,3.77961]
[1748505910491,0.05,2718.9,2717.9,1.80235976]
[1748505910736,0.19070186,2718.4,2718.0,1.80539562]
[1748505910919,1.085,2718.7,2717.9,0.1235]
[1748505911132,0.30737604,2718.2,2717.6,3.07885976]
[1748505911332,0.30737604,2718.2,2717.6,6.28139482]
[1748505911492,0.30737604,2718.2,2717.7,1.31295171]
[1748505911829,0.30737604,2718.2,2717.7,4.99244973]
[1748505912126,0.30737604,2718.2,2717.9,1.80235976]
[1748505912733,4.098,2718.6,2717.9,1.80235976]
[1748505913045,0.05,2718.9,2718.4,1.80235976]
[1748505913342,0.30675548,2718.8,2718.4,1.80235976]
[1748505914030,0.30675548,2718.8,2718.4,1.80193625]
[1748505914620,1.1351,2718.8,2716.2,3.68153761]
[1748505914822,1.1351,2718.8,2716.1,0.05]
[1748505914823,1.1351,2718.2,2716.1,0.05]
[1748505915029,3.67954846,2717.8,2717.0,1.80193625]
[1748505915233,3.67927522,2718.0,2717.0,1.80193625]
[1748505915234,3.67926717,2718.0,2717.1,3.68028697]
[1748505915408,3.67942044,2717.9,2717.0,5.48238502]
[1748505915605,3.67942044,2717.9,2717.2,3.68022082]
[1748505915910,0.73585744,2717.9,2717.2,3.68015982]
[1748505916214,3.67908666,2718.1,2717.2,3.68016673]
[1748505916411,4.109,2718.6,2718.0,1.80193625]